fUST/lending_fUST_20250907
["ID","MTS","AMOUNT","RATE_DAILY","PERIOD"]
[383944977,1757189443856,-480.0,0.00013972,2]
[383944979,1757189443866,-480.0,0.00013972,2]
[383944980,1757189443876,-480.0,0.00013972,2]
[383944982,1757189443887,-480.0,0.00013972,2]
[383944984,1757189443897,-480.0,0.00013972,2]
[383944985,1757189443906,-480.0,0.00013972,2]
[383944986,1757189443916,-480.0,0.00013972,2]
[383944988,1757189443926,-480.0,0.00013972,2]
[383944990,1757189443936,-480.0,0.00013972,2]
[383944991,1757189443946,-480.0,0.00013972,2]
[383944993,1757189443955,-264.80045643,0.00013972,2]
[383944994,1757189443965,-480.0,0.00013972,2]
[383944996,1757189443975,-480.0,0.00013972,2]
[383944997,1757189443985,-480.0,0.00013972,2]
[383944999,1757189443995,-480.0,0.00013972,2]
[383945000,1757189444005,-1204.48,0.00013972,2]
[383945002,1757189444015,-480.0,0.00013972,2]
[383945003,1757189444024,-480.0,0.00013972,2]
[383945005,1757189444034,-3000.0,0.0001404,2]
[383945006,1757189444044,-975.0,0.00014245,2]
[383945008,1757189444052,-634.0,0.00014245,2]
[383945009,1757189444062,-480.0,0.00014245,2]
[383945011,1757189444071,-480.0,0.00014245,2]
[383945012,1757189444080,-480.0,0.00014245,2]
[383945014,1757189444089,-480.0,0.00014246,2]
[383945015,1757189444099,-428.66463508,0.00014246,2]
[383945017,1757189444109,-480.0,0.00014246,2]
[383945019,1757189444118,-480.0,0.00014246,2]
[383945020,1757189444127,-480.0,0.00014246,2]
[383945022,1757189444137,-480.0,0.00014246,2]
[383945023,1757189444146,-480.0,0.00014246,2]
[383945025,1757189444156,-480.0,0.00014246,2]
[383945027,1757189444165,-480.0,0.00014246,2]
[383945028,1757189444174,-300.43932245,0.00014246,2]
[383945030,1757189444184,-480.0,0.00014246,2]
[383945031,1757189444194,-336.02773517,0.00014246,2]
[383945033,1757189444203,-480.0,0.00014246,2]
[383945034,1757189444212,-480.0,0.00014246,2]
[383945036,1757189444221,-480.0,0.00014246,2]
[383945038,1757189444230,-480.0,0.00014246,2]
[383945039,1757189444239,-480.0,0.00014246,2]
[383945041,1757189444248,-719.99,0.00014246,2]
[383945042,1757189444258,-480.0,0.00014246,2]
[383945043,1757189444266,-480.0,0.00014246,2]
[383945045,1757189444276,-480.0,0.00014246,2]
[383945046,1757189444285,-480.0,0.00014246,2]
[383945048,1757189444294,-480.0,0.00014246,2]
[383945049,1757189444303,-480.0,0.00014246,2]
[383945051,1757189444312,-480.0,0.00014246,2]
[383945053,1757189444321,-475.67625969,0.00014246,2]
[383945054,1757189444330,-480.0,0.00014246,2]
[383945056,1757189444339,-480.0,0.00014246,2]
[383945058,1757189444350,-353.1184047,0.00014246,2]
[383945059,1757189444361,-480.0,0.00014246,2]
[383945061,1757189444370,-480.0,0.00014246,2]
[383945062,1757189444379,-480.0,0.00014246,2]
[383945064,1757189444389,-480.0,0.00014246,2]
[383945065,1757189444398,-480.0,0.00014246,2]
[383945067,1757189444409,-480.0,0.00014246,2]
[383945069,1757189444418,-480.0,0.00014246,2]
[383945070,1757189444427,-480.0,0.00014246,2]
[383945072,1757189444438,-480.0,0.00014246,2]
[383945073,1757189444447,-480.0,0.00014246,2]
[383945075,1757189444456,-480.0,0.00014246,2]
[383945077,1757189444466,-480.0,0.00014246,2]
[383945078,1757189444475,-480.0,0.00014246,2]
[383945080,1757189444484,-1204.48,0.00014246,2]
[383945081,1757189444494,-480.0,0.00014246,2]
[383945083,1757189444503,-480.0,0.00014246,2]
[383945085,1757189444512,-846.58554688,0.00014418,2]
[383945086,1757189444522,-160.0,0.00014418,2]
[383945088,1757189444531,-417.15472785,0.00014418,2]
[383945089,1757189444540,-160.0,0.00014418,2]
[383945091,1757189444549,-203.21852024,0.00014418,2]
[383945092,1757189444558,-530.56961759,0.00014418,2]
[383945094,1757189444568,-217.58669629,0.00014418,2]
[383945096,1757189444578,-232.99021696,0.00014418,2]
[383945097,1757189444587,-480.0,0.00014519,2]
[383945099,1757189444597,-480.0,0.00014519,2]
[383945101,1757189444606,-480.0,0.00014519,2]
[383945102,1757189444616,-480.0,0.0001452,2]
[383945104,1757189444626,-480.0,0.0001452,2]
[383945105,1757189444635,-480.0,0.0001452,2]
[383945107,1757189444645,-480.0,0.0001452,2]
[383945109,1757189444655,-583.33878135,0.0001452,2]
[383945110,1757189444664,-599.96610479,0.0001452,2]
[383945112,1757189444674,-485.46661517,0.0001452,2]
[383945114,1757189444684,-480.0,0.0001452,2]
[383945115,1757189444693,-480.0,0.0001452,2]
[383945117,1757189444703,-480.0,0.0001452,2]
[383945118,1757189444713,-480.0,0.0001452,2]
[383945120,1757189444723,-480.0,0.0001452,2]
[383945122,1757189444733,-480.0,0.0001452,2]
[383945124,1757189444743,-480.0,0.0001452,2]
[383945125,1757189444753,-719.99,0.0001452,2]
[383945127,1757189444762,-480.0,0.0001452,2]
[383945128,1757189444772,-480.0,0.0001452,2]
[383945130,1757189444781,-480.0,0.0001452,2]
[383945132,1757189444790,-480.0,0.0001452,2]
[383945133,1757189444800,-480.0,0.0001452,2]
[383945135,1757189444809,-480.0,0.0001452,2]
[383945137,1757189444819,-480.0,0.0001452,2]
[383945138,1757189444828,-480.0,0.0001452,2]
[383945140,1757189444838,-480.0,0.0001452,2]
[383945141,1757189444848,-480.0,0.0001452,2]
[383945143,1757189444859,-480.0,0.0001452,2]
[383945145,1757189444868,-480.0,0.0001452,2]
[383945146,1757189444878,-480.0,0.0001452,2]
[383945148,1757189444889,-480.0,0.0001452,2]
[383945150,1757189444898,-480.0,0.0001452,2]
[383945151,1757189444908,-480.0,0.0001452,2]
[383945153,1757189444918,-480.0,0.0001452,2]
[383945155,1757189444927,-480.0,0.0001452,2]
[383945156,1757189444936,-480.0,0.0001452,2]
[383945158,1757189444947,-480.0,0.0001452,2]
[383945160,1757189444957,-616.84445463,0.0001452,2]
[383945161,1757189444967,-480.0,0.0001452,2]
[383945163,1757189444977,-1204.48,0.0001452,2]
[383945165,1757189444986,-480.0,0.0001452,2]
[383945166,1757189444996,-480.0,0.0001452,2]
[383945168,1757189445006,-500.0,0.00014738,2]
[383945169,1757189445015,-480.0,0.00014793,2]
[383945171,1757189445024,-480.0,0.00014793,2]
[383945173,1757189445033,-480.0,0.00014793,2]
[383945174,1757189445043,-198.76264839,0.00014794,2]
[383945176,1757189445052,-334.16503402,0.00014794,2]
[383945178,1757189445061,-305.636899,0.00014794,2]
[383945179,1757189445071,-346.39,0.00014794,2]
[383945181,1757189445080,-480.0,0.00014794,2]
[383945182,1757189445089,-457.41712824,0.00014794,2]
[383945184,1757189445099,-490.14108768,0.00014794,2]
[383945186,1757189445108,-480.0,0.00014794,2]
[383945187,1757189445117,-480.0,0.00014794,2]
[383945189,1757189445126,-480.0,0.00014794,2]
[383945190,1757189445135,-480.0,0.00014794,2]
[383945192,1757189445145,-719.99,0.00014794,2]
[383945194,1757189445154,-471.99971597,0.00014794,2]
[383945195,1757189445163,-480.0,0.00014794,2]
[383945197,1757189445172,-404.66905396,0.00014794,2]
[383945198,1757189445181,-480.0,0.00014794,2]
[383945200,1757189445191,-480.0,0.00014794,2]
[383945202,1757189445200,-480.0,0.00014794,2]
[383945203,1757189445209,-480.0,0.00014794,2]
[383945205,1757189445218,-236.76650308,0.00014794,2]
[383945206,1757189445227,-480.0,0.00014794,2]
[383945208,1757189445236,-462.08932082,0.00014794,2]
[383945210,1757189445246,-480.0,0.00014794,2]
[383945211,1757189445255,-480.0,0.00014794,2]
[383945213,1757189445265,-480.0,0.00014794,2]
[383945215,1757189445274,-480.0,0.00014794,2]
[383945216,1757189445284,-480.0,0.00014794,2]
[383945218,1757189445293,-480.0,0.00014794,2]
[383945219,1757189445302,-295.62854131,0.00014794,2]
[383945221,1757189445311,-480.0,0.00014794,2]
[383945223,1757189445321,-480.0,0.00014794,2]
[383945224,1757189445330,-353.97296915,0.00014794,2]
[383945226,1757189445340,-480.0,0.00014794,2]
[383945227,1757189445349,-1204.48,0.00014794,2]
[383945229,1757189445359,-480.0,0.00014794,2]
[383945231,1757189445368,-480.0,0.00014794,2]
[383945232,1757189445381,-300.0,0.0001501,2]
[383945234,1757189445391,-307.85879183,0.00015067,2]
[383945236,1757189445400,-480.0,0.00015067,2]
[383945237,1757189445410,-480.0,0.00015067,2]
[383945239,1757189445421,-422.32507407,0.00015068,2]
[383945240,1757189445430,-480.0,0.00015068,2]
[383945242,1757189445440,-560.48997882,0.00015068,2]
[383945244,1757189445450,-480.0,0.00015068,2]
[383945245,1757189445460,-480.0,0.00015068,2]
[383945247,1757189445469,-719.99,0.00015068,2]
[383945248,1757189445479,-480.0,0.00015068,2]
[383945250,1757189445489,-480.0,0.00015068,2]
[383945252,1757189445499,-480.0,0.00015068,2]
[383945253,1757189445509,-480.0,0.00015068,2]
[383945255,1757189445518,-480.0,0.00015068,2]
[383945257,1757189445528,-480.0,0.00015068,2]
[383945267,1757189445666,-480.0,0.00015068,2]
[383945268,1757189445680,-480.0,0.00015068,2]
[383945270,1757189445690,-480.0,0.00015068,2]
[383945271,1757189445699,-480.0,0.00015068,2]
[383945273,1757189445711,-480.0,0.00015068,2]
[383945275,1757189445721,-480.0,0.00015068,2]
[383945276,1757189445730,-480.0,0.00015068,2]
[383945278,1757189445740,-480.0,0.00015068,2]
[383945280,1757189445749,-480.0,0.00015068,2]
[383945281,1757189445758,-1204.48,0.00015068,2]
[383945283,1757189445768,-480.0,0.00015068,2]
[383945284,1757189445777,-480.0,0.00015068,2]
[383945286,1757189445786,-702.91911675,0.00015241,2]
[383945288,1757189445796,-1000.0,0.00015286,2]
[383945289,1757189445805,-480.0,0.00015341,2]
[383945291,1757189445815,-480.0,0.00015341,2]
[383945292,1757189445825,-480.0,0.00015342,2]
[383945294,1757189445835,-480.0,0.00015342,2]
[383945296,1757189445845,-480.0,0.00015342,2]
[383945297,1757189445855,-719.99,0.00015342,2]
[383945299,1757189445864,-480.0,0.00015342,2]
[383945301,1757189445874,-480.0,0.00015342,2]
[383945302,1757189445883,-480.0,0.00015342,2]
[383945304,1757189445893,-344.2199177,0.00015342,2]
[383945306,1757189445903,-480.0,0.00015342,2]
[383945307,1757189445912,-480.0,0.00015342,2]
[383945309,1757189445921,-480.0,0.00015342,2]
[383945310,1757189445931,-480.0,0.00015342,2]
[383945312,1757189445941,-480.0,0.00015342,2]
[383945314,1757189445950,-480.0,0.00015342,2]
[383945315,1757189445959,-480.0,0.00015342,2]
[383945317,1757189445968,-480.0,0.00015342,2]
[383945318,1757189445977,-480.0,0.00015342,2]
[383945320,1757189445987,-480.0,0.00015342,2]
[383945322,1757189445997,-226.08305969,0.00015342,2]
[383945323,1757189446007,-1204.48,0.00015342,2]
[383945325,1757189446016,-480.0,0.00015342,2]
[383945327,1757189446025,-480.0,0.00015342,2]
[383945328,1757189446034,-720.0,0.00015368,2]
[383945330,1757189446043,-3000.0,0.0001541,2]
[383945332,1757189446053,-480.0,0.00015615,2]
[383945333,1757189446063,-480.0,0.00015615,2]
[383945335,1757189446073,-480.0,0.00015616,2]
[383945336,1757189446083,-480.0,0.00015616,2]
[383945337,1757189446092,-480.0,0.00015616,2]
[383945338,1757189446102,-719.99,0.00015616,2]
[383945339,1757189446112,-480.0,0.00015616,2]
[383945340,1757189446121,-480.0,0.00015616,2]
[383945341,1757189446131,-480.0,0.00015616,2]
[383945342,1757189446140,-480.0,0.00015616,2]
[383945343,1757189446150,-480.0,0.00015616,2]
[383945344,1757189446160,-480.0,0.00015616,2]
[383945345,1757189446169,-480.0,0.00015616,2]
[383945346,1757189446179,-480.0,0.00015616,2]
[383945347,1757189446189,-480.0,0.00015616,2]
[383945348,1757189446198,-480.0,0.00015616,2]
[383945349,1757189446208,-480.0,0.00015616,2]
[383945350,1757189446218,-480.0,0.00015616,2]
[383945351,1757189446227,-1204.48,0.00015616,2]
[383945352,1757189446237,-480.0,0.00015616,2]
[383945353,1757189446246,-188.3,0.00015616,2]
[383945354,1757189446256,-1500.0,0.00015834,2]
[383945355,1757189446266,-480.0,0.00015889,2]
[383945356,1757189446275,-541.53911177,0.00015889,2]
[383945357,1757189446285,-480.0,0.0001589,2]
[383945358,1757189446295,-480.0,0.0001589,2]
[383945359,1757189446304,-480.0,0.0001589,2]
[383945360,1757189446314,-719.99,0.0001589,2]
[383945361,1757189446323,-480.0,0.0001589,2]
[383945362,1757189446333,-480.0,0.0001589,2]
[383945363,1757189446343,-480.0,0.0001589,2]
[383945364,1757189446353,-480.0,0.0001589,2]
[383945365,1757189446363,-480.0,0.0001589,2]
[383945366,1757189446372,-480.0,0.0001589,2]
[383945368,1757189446382,-480.0,0.0001589,2]
[383945369,1757189446391,-480.0,0.0001589,2]
[383945370,1757189446404,-480.0,0.0001589,2]
[383945371,1757189446413,-257.78467652,0.0001589,2]
[383945373,1757189446423,-480.0,0.0001589,2]
[383945375,1757189446432,-480.0,0.0001589,2]
[383945377,1757189446443,-1204.48,0.0001589,2]
[383945379,1757189446452,-480.0,0.0001589,2]
[383945381,1757189446461,-150.0,0.00016,2]
[383945383,1757189446471,-480.0,0.00016163,2]
[383945385,1757189446481,-480.0,0.00016164,2]
[383945387,1757189446492,-445.20890335,0.00016164,2]
[383945389,1757189446502,-480.0,0.00016164,2]
[383945391,1757189446512,-719.99,0.00016164,2]
[383945393,1757189446522,-480.0,0.00016164,2]
[383945395,1757189446532,-480.0,0.00016164,2]
[383945396,1757189446542,-470.5619233,0.00016164,2]
[383945398,1757189446551,-480.0,0.00016164,2]
[383945400,1757189446562,-480.0,0.00016164,2]
[383945402,1757189446571,-480.0,0.00016164,2]
[383945404,1757189446581,-480.0,0.00016164,2]
[383945406,1757189446590,-480.0,0.00016164,2]
[383945408,1757189446600,-276.391809,0.00016164,2]
[383945410,1757189446609,-480.0,0.00016164,2]
[383945412,1757189446618,-480.0,0.00016164,2]
[383945414,1757189446628,-1204.48,0.00016164,2]
[383945416,1757189446638,-480.0,0.00016164,2]
[383945418,1757189446647,-2000.0,0.000162,2]
[383945420,1757189446657,-163.673,0.0001624,2]
[383945422,1757189446666,-702.91911674,0.00016281,2]
[383945424,1757189446676,-2000.0,0.00016382,2]
[383945426,1757189446685,-406.0,0.000164,2]
[383945428,1757189446696,-160.0,0.00016429,2]
[383945430,1757189446705,-599.0326231,0.00016437,2]
[383945432,1757189446714,-480.0,0.00016438,2]
[383945434,1757189446724,-480.0,0.00016438,2]
[383945436,1757189446733,-719.99,0.00016438,2]
[383945438,1757189446743,-359.30771299,0.00016438,2]
[383945440,1757189446752,-480.0,0.00016438,2]
[383945442,1757189446762,-480.0,0.00016438,2]
[383945444,1757189446771,-480.0,0.00016438,2]
[383945446,1757189446781,-480.0,0.00016438,2]
[383945448,1757189446791,-480.0,0.00016438,2]
[383945450,1757189446801,-480.0,0.00016438,2]
[383945452,1757189446810,-480.0,0.00016438,2]
[383945454,1757189446820,-480.0,0.00016438,2]
[383945456,1757189446829,-1204.48,0.00016438,2]
[383945458,1757189446838,-480.0,0.00016438,2]
[383945460,1757189446848,-500.0,0.00016438,2]
[383945462,1757189446858,-480.0,0.00016712,2]
[383945464,1757189446867,-480.0,0.00016712,2]
[383945466,1757189446876,-719.99,0.00016712,2]
[383945468,1757189446885,-480.0,0.00016712,2]
[383945470,1757189446895,-480.0,0.00016712,2]
[383945472,1757189446904,-480.0,0.00016712,2]
[383945474,1757189446913,-480.0,0.00016712,2]
[383945476,1757189446922,-480.0,0.00016712,2]
[383945478,1757189446932,-480.0,0.00016712,2]
[383945480,1757189446941,-415.27931026,0.00016712,2]
[383945482,1757189446950,-500.0,0.00016712,2]
[383945484,1757189446960,-480.0,0.00016712,2]
[383945486,1757189446969,-1204.48,0.00016712,2]
[383945488,1757189446979,-480.0,0.00016712,2]
[383945490,1757189446988,-3000.0,0.0001678,2]
[383945492,1757189446997,-864.0,0.00016905,2]
[383945494,1757189447007,-329.43830265,0.0001693,2]
[383945496,1757189447016,-260.0,0.00016977,2]
[383945498,1757189447026,-480.0,0.00016986,2]
[383945500,1757189447035,-480.0,0.00016986,2]
[383945502,1757189447045,-719.99,0.00016986,2]
[383945504,1757189447054,-480.0,0.00016986,2]
[383945506,1757189447063,-480.0,0.00016986,2]
[383945508,1757189447073,-480.0,0.00016986,2]
[383945510,1757189447082,-276.51373606,0.00016986,2]
[383945512,1757189447092,-411.72320522,0.00016986,2]
[383945514,1757189447101,-480.0,0.00016986,2]
[383945516,1757189447110,-480.0,0.00016986,2]
[383945518,1757189447120,-1204.48,0.00016986,2]
[383945520,1757189447129,-480.0,0.00016986,2]
[383945522,1757189447139,-2000.0,0.000172,2]
[383945523,1757189447148,-627.0,0.00017245,2]
[383945524,1757189447158,-480.0,0.0001726,2]
[383945525,1757189447167,-480.0,0.0001726,2]
[383945526,1757189447176,-719.99,0.0001726,2]
[383945527,1757189447186,-480.0,0.0001726,2]
[383945528,1757189447195,-480.0,0.0001726,2]
[383945529,1757189447205,-300.98195974,0.0001726,2]
[383945530,1757189447214,-500.0,0.0001726,2]
[383945531,1757189447223,-480.0,0.0001726,2]
[383945532,1757189447233,-480.0,0.0001726,2]
[383945533,1757189447243,-1204.48,0.0001726,2]
[383945534,1757189447252,-480.0,0.0001726,2]
[383945535,1757189447262,-702.91911674,0.00017321,2]
[383945536,1757189447271,-360.0,0.00017525,2]
[383945537,1757189447281,-500.0,0.00017534,2]
[383945538,1757189447290,-480.0,0.00017534,2]
[383945539,1757189447300,-480.0,0.00017534,2]
[383945540,1757189447310,-719.99,0.00017534,2]
[383945541,1757189447319,-480.0,0.00017534,2]
[383945542,1757189447328,-388.72072397,0.00017534,2]
[383945543,1757189447339,-480.0,0.00017534,2]
[383945544,1757189447349,-480.0,0.00017534,2]
[383945545,1757189447358,-1204.48,0.00017534,2]
[383945546,1757189447367,-480.0,0.00017534,2]
[383945547,1757189447377,-500.99956028,0.00017534,2]
[383945548,1757189447387,-500.0,0.00017808,2]
[383945549,1757189447399,-480.0,0.00017808,2]
[383945550,1757189447409,-480.0,0.00017808,2]
[383945551,1757189447418,-719.99,0.00017808,2]
[383945552,1757189447428,-480.0,0.00017808,2]
[383945553,1757189447437,-480.0,0.00017808,2]
[383945554,1757189447447,-480.0,0.00017808,2]
[383945555,1757189447457,-1204.48,0.00017808,2]
[383945556,1757189447467,-480.0,0.00017808,2]
[383945557,1757189447476,-3000.0,0.00017876,2]
[383945558,1757189447487,-460.0,0.00018073,2]
[383945559,1757189447498,-500.0,0.00018081,2]
[383945560,1757189447508,-500.0,0.00018081,2]
[383945561,1757189447518,-649.62982469,0.00018081,2]
[383945562,1757189447528,-500.0,0.00018081,2]
[383945563,1757189447538,-500.0,0.00018082,2]
[383945564,1757189447547,-629.13295478,0.00018082,2]
[383945565,1757189447557,-480.0,0.00018082,2]
[383945566,1757189447566,-719.99,0.00018082,2]
[383945567,1757189447576,-441.52082437,0.00018082,2]
[383945568,1757189447588,-480.0,0.00018082,2]
[383945569,1757189447598,-180.63153755,0.00018082,2]
[383945570,1757189447609,-1204.48,0.00018082,2]
[383945571,1757189447619,-312.54646195,0.00018082,2]
[383945572,1757189447629,-325.0,0.00018178,2]
[383945573,1757189447638,-1067.0,0.000182,2]
[383945574,1757189447648,-500.0,0.00018356,2]
[383945575,1757189447658,-480.0,0.00018356,2]
[383945576,1757189447668,-719.99,0.00018356,2]
[383945577,1757189447678,-480.0,0.00018356,2]
[383945578,1757189447687,-1204.48,0.00018356,2]
[383945579,1757189447697,-413.0,0.0001836,2]
[383945580,1757189447707,-702.91911674,0.0001836,2]
[383945581,1757189447722,-478.0,0.00018541,2]
[383945582,1757189447732,-1000.0,0.00018595,20]
[383945583,1757189447742,-560.0,0.00018621,2]
[383945584,1757189447751,-500.0,0.0001863,2]
[383945585,1757189447769,-480.0,0.0001863,2]
[383945586,1757189447779,-719.99,0.0001863,2]
[383945587,1757189447789,-480.0,0.0001863,2]
[383945588,1757189447799,-1204.48,0.0001863,2]
[383945589,1757189447808,-400.0,0.00018783,26]
[383945590,1757189447817,-500.0,0.00018904,2]
[383945591,1757189447827,-480.0,0.00018904,2]
[383945592,1757189447837,-719.99,0.00018904,2]
[383945593,1757189447846,-411.53931978,0.00018904,2]
[383945594,1757189447857,-1204.48,0.00018904,2]
[383945595,1757189447867,-3000.0,0.00018972,2]
[383945596,1757189447876,-4026.0,0.00019,2]
[383945597,1757189447886,-660.0,0.00019169,2]
[383945598,1757189447895,-500.0,0.00019178,2]
[383945599,1757189447905,-480.0,0.00019178,2]
[383945600,1757189447914,-719.99,0.00019178,2]
[383945601,1757189447924,-157.0,0.00019178,2]
[383945602,1757189447934,-157.0,0.00019178,2]
[383945603,1757189447943,-1204.48,0.00019178,2]
[383945604,1757189447952,-5000.0,0.00019178,2]
[383945605,1757189447962,-5000.0,0.00019178,2]
[383945606,1757189447971,-5000.0,0.00019178,2]
[383945607,1757189447981,-5000.0,0.00019178,2]
[383945609,1757189447990,-5000.0,0.00019178,2]
[383945611,1757189447999,-1411.73343675,0.00019178,2]
[383945613,1757189448009,-150.0,0.00019178,2]
[383945614,1757189448019,-300.0,0.00019315,2]
[383945615,1757189448029,-28344.50094078,0.00019351,2]
[383945616,1757189448038,-702.91911674,0.000194,2]
[383945617,1757189448048,-500.0,0.00019452,2]
[383945618,1757189448058,-157.0,0.00019452,2]
[383945619,1757189448068,-157.0,0.00019452,2]
[383945620,1757189448077,-480.0,0.00019452,2]
[383945621,1757189448088,-719.99,0.00019452,2]
[383945622,1757189448097,-1204.48,0.00019452,2]
[383945623,1757189448108,-450.0,0.00019452,2]
[383945624,1757189448117,-500.0,0.00019473,2]
[383945625,1757189448127,-500.0,0.00019473,2]
[383945626,1757189448138,-500.0,0.00019473,2]
[383945627,1757189448149,-236.02631241,0.00019473,2]
[383945628,1757189448159,-500.0,0.00019473,2]
[383945629,1757189448168,-448.84493398,0.00019473,2]
[383945630,1757189448178,-500.0,0.00019473,2]
[383945631,1757189448188,-500.0,0.00019473,2]
[383945632,1757189448198,-500.0,0.00019473,2]
[383945633,1757189448208,-500.0,0.00019473,2]
[383945634,1757189448218,-44069.15347266,0.000195,2]
[383947518,1757189837629,909.40926512,0.00013158,2]
[383947519,1757189854046,909.40926512,0.00013158,2]
[383947520,1757189862272,429.40926512,0.00013158,2]
[383947521,1757189877587,429.40926512,0.00013158,2]
[383947522,1757189901174,429.40926512,0.00013158,2]
[383947526,1757189924003,429.40926512,0.00013158,2]
[383947527,1757189946821,429.40926512,0.00013158,2]
[383947528,1757189969497,429.40926512,0.00013158,2]
[383947531,1757189992652,429.40926512,0.00013158,2]
[383947532,1757190017008,429.40926512,0.00013158,2]
[383947533,1757190040005,429.40926512,0.00013158,2]
[383947534,1757190062152,429.40926512,0.00013158,2]
[383947535,1757190084480,429.40926512,0.00013158,2]
[383947536,1757190107647,429.40926512,0.00013158,2]
[383947537,1757190130876,429.40926512,0.00013158,2]
[383947538,1757190153940,416.31311119,0.00013158,2]
[383947539,1757190265746,415.024516,0.00013158,2]
[383947540,1757190288422,415.024516,0.00013158,2]
[383947541,1757190311857,415.024516,0.00013158,2]
[383947543,1757190334342,415.024516,0.00013158,2]
[383947544,1757190357927,415.024516,0.00013158,2]
[383947545,1757190381189,415.024516,0.00013158,2]
[383947546,1757190404935,415.024516,0.00013158,2]
[383947548,1757190429553,415.024516,0.00013158,2]
[383947552,1757190453634,415.024516,0.00013158,2]
[383947553,1757190476771,415.024516,0.00013158,2]
[383947554,1757190499404,415.024516,0.00013158,2]
[383947555,1757190522356,415.024516,0.00013158,2]
[383947556,1757190546109,415.024516,0.00013158,2]
[383947557,1757190569656,415.024516,0.00013158,2]
[383947569,1757190632512,-429.40926512,0.00013291,2]
[383947570,1757190632521,-500.0,0.00013673,2]
[383947571,1757190632530,-500.0,0.00013673,2]
[383947572,1757190632540,-1200.0,0.00013696,2]
[383947573,1757190632549,-1200.0,0.00013697,2]
[383947574,1757190632558,-300.0,0.00013697,2]
[383947575,1757190632568,-300.0,0.00013697,2]
[383947576,1757190632578,-300.0,0.00013697,2]
[383947577,1757190632588,-480.0,0.00013698,2]
[383947578,1757190632598,-480.0,0.00013698,2]
[383947579,1757190632608,-480.0,0.00013698,2]
[383947581,1757190632617,-480.0,0.00013698,2]
[383947582,1757190632626,-480.0,0.00013698,2]
[383947584,1757190632636,-499.45047624,0.00013698,2]
[383947586,1757190632645,-480.0,0.00013698,2]
[383947588,1757190632654,-480.0,0.00013698,2]
[383947590,1757190632664,-480.0,0.00013698,2]
[383947593,1757190632673,-480.0,0.00013698,2]
[383947596,1757190632682,-480.0,0.00013698,2]
[383947597,1757190632691,-480.0,0.00013698,2]
[383947598,1757190632700,-480.0,0.00013698,2]
[383947599,1757190632709,-480.0,0.00013698,2]
[383947600,1757190632719,-480.0,0.00013698,2]
[383947601,1757190632728,-480.0,0.00013698,2]
[383947602,1757190632738,-480.0,0.00013698,2]
[383947603,1757190632748,-480.0,0.00013698,2]
[383947605,1757190632757,-615.29918982,0.00013698,2]
[383947607,1757190632767,-480.0,0.00013698,2]
[383947610,1757190632777,-480.0,0.00013698,2]
[383947611,1757190632786,-480.0,0.00013698,2]
[383947613,1757190632796,-480.0,0.00013698,2]